bitfinex/quotes_BTCUSD_20241010
["timestamp","ask_amount","ask_price","bid_price","bid_amount"]
[1728542699690,0.54766462,61102.0,61101.0,0.25411393]
[1728542699932,0.71132462,61102.0,61101.0,0.25815657]
[1728542700136,0.71132462,61102.0,61101.0,0.241986]
[1728542700342,0.71132462,61102.0,61101.0,0.25411393]
[1728542700561,0.71132462,61102.0,61101.0,0.241986]
[1728542700806,0.54766462,61102.0,61101.0,0.241986]
[1728542701297,0.71132462,61102.0,61101.0,0.241986]
[1728542701995,0.54766462,61102.0,61101.0,0.241986]
[1728542702220,0.71132462,61102.0,61101.0,0.241986]
[1728542702447,0.54766462,61102.0,61101.0,0.241986]
[1728542702663,0.54766462,61102.0,61101.0,0.2541054]
[1728542702898,0.54766462,61102.0,61101.0,0.2581452]
[1728542704785,0.71132462,61102.0,61101.0,0.241986]
[1728542705035,0.71132462,61102.0,61101.0,0.2581452]
[1728542705266,0.71132462,61102.0,61101.0,0.241986]
[1728542707366,0.71132462,61102.0,61101.0,0.25815461]
[1728542707598,0.71132462,61102.0,61101.0,0.241986]
[1728542708812,0.54766462,61102.0,61101.0,0.241986]
[1728542709322,0.71132462,61102.0,61101.0,0.241986]
[1728542709571,0.71132462,61102.0,61101.0,0.25411246]
[1728542709799,0.54766462,61102.0,61101.0,0.241986]
[1728542710033,0.54766462,61102.0,61101.0,0.25815461]
[1728542715252,0.71132462,61102.0,61101.0,0.25815461]
[1728542715490,0.71132462,61102.0,61101.0,0.241986]
[1728542719704,0.71132462,61102.0,61101.0,0.25815792]
[1728542719910,0.71132462,61102.0,61101.0,0.25411494]
[1728542720145,0.71132462,61102.0,61101.0,0.241986]
[1728542722060,0.54766462,61102.0,61101.0,0.241986]
[1728542722336,0.26110212,61102.0,61101.0,0.405649]
[1728542722792,0.26110212,61102.0,61101.0,0.42181709]
[1728542723033,0.37282698,61102.0,61101.0,0.42181709]
[1728542723270,0.35882698,61102.0,61101.0,0.42181709]
[1728542723532,0.35882698,61102.0,61101.0,0.25815409]
[1728542724519,0.37282698,61102.0,61101.0,0.25815409]
[1728542724772,0.30794016,61102.0,61101.0,0.25815409]
[1728542725007,0.3741114,61102.0,61101.0,0.25915409]
[1728542725254,0.32294016,61102.0,61101.0,0.25915409]
[1728542725506,0.30894016,61102.0,61101.0,0.25815409]
[1728542725747,0.30994016,61102.0,61101.0,0.25815409]
[1728542727239,0.30994016,61102.0,61101.0,0.42181709]
[1728542728708,0.1842153,61102.0,61101.0,0.42181709]
[1728542728956,0.1842153,61102.0,61101.0,0.42381709]
[1728542729424,0.1255587,61102.0,61101.0,0.42381709]
[1728542729930,0.306956,61102.0,61101.0,0.42181709]
[1728542731832,0.30675178,61102.0,61101.0,0.42181709]
[1728542732069,0.30675178,61102.0,61101.0,0.41679348]
[1728542733064,0.30675178,61102.0,61101.0,0.41879348]
[1728542735912,0.30675178,61102.0,61101.0,0.41679348]
[1728542736146,0.18402773,61102.0,61101.0,0.41679348]
[1728542736375,0.18402773,61102.0,61101.0,0.41879348]
[1728542736610,0.18402412,61102.0,61101.0,0.41879348]
[1728542737539,0.18402412,61102.0,61101.0,0.41679348]
[1728542739662,0.002818,61102.0,61101.0,0.41679348]
[1728542741933,0.18402645,61102.0,61101.0,0.41679348]
[1728542742518,0.18402645,61102.0,61101.0,0.41879348]
[1728542743235,0.002818,61102.0,61101.0,0.41879348]
[1728542745644,0.002818,61102.0,61101.0,0.42320625]
[1728542746090,0.002818,61102.0,61101.0,0.42120625]
[1728542747465,0.002818,61102.0,61101.0,0.42320625]
[1728542750452,0.002818,61102.0,61101.0,0.42120625]
[1728542751827,0.18402658,61102.0,61101.0,0.42120625]
[1728542753550,0.002818,61102.0,61101.0,0.42120625]
[1728542754484,0.002818,61102.0,61101.0,0.42320625]
[1728542757034,0.12555782,61102.0,61101.0,0.42320625]
[1728542757255,0.30679084,61102.0,61101.0,0.42320625]
[1728542760605,0.30679084,61102.0,61101.0,0.42120625]
[1728542761697,0.30687296,61102.0,61101.0,0.42120625]
[1728542762374,0.18409998,61102.0,61101.0,0.42120625]
[1728542766496,0.18420308,61102.0,61101.0,0.42120625]
[1728542766768,0.18420308,61102.0,61101.0,0.25754325]
[1728542767012,0.18420308,61102.0,61101.0,0.42120625]
[1728542770447,0.23542277,61102.0,61101.0,0.42120625]
[1728542771297,0.23548687,61102.0,61101.0,0.42120625]
[1728542773272,0.18426718,61102.0,61101.0,0.42120625]
[1728542773485,0.18426718,61102.0,61101.0,0.42320625]
[1728542773967,0.002818,61102.0,61101.0,0.54344738]
[1728542774195,0.002818,61102.0,61101.0,0.71651826]
[1728542774462,0.000818,61106.0,61105.0,0.39631934]
[1728542774697,0.000818,61106.0,61105.0,0.61265123]
[1728542774907,0.000818,61106.0,61105.0,0.62820297]
[1728542775545,0.000818,61106.0,61105.0,0.61596973]
[1728542776187,0.001818,61106.0,61105.0,0.61996973]
[1728542776403,0.001818,61106.0,61105.0,0.62196973]
[1728542776618,0.000818,61106.0,61105.0,0.61396973]
[1728542776835,0.001818,61106.0,61105.0,0.61796973]
[1728542777051,0.002818,61106.0,61105.0,0.62396973]
[1728542777266,0.002818,61106.0,61105.0,0.62196973]
[1728542777521,0.002818,61106.0,61105.0,0.62396973]
[1728542778157,0.000818,61106.0,61105.0,0.61596973]
[1728542778580,0.001818,61106.0,61105.0,0.62296973]
[1728542778851,0.002818,61106.0,61105.0,0.62396973]
[1728542779065,0.001818,61106.0,61105.0,0.64334592]
[1728542779504,0.002818,61106.0,61105.0,0.65034592]
[1728542779725,0.002818,61106.0,61105.0,0.65027945]
[1728542779936,0.001818,61106.0,61105.0,0.51755459]
[1728542780189,0.002818,61106.0,61105.0,0.66551163]
[1728542780428,0.001818,61106.0,61105.0,0.66251163]
[1728542780638,0.002818,61106.0,61105.0,0.66451163]
[1728542781072,0.001818,61106.0,61105.0,0.53678677]
[1728542781508,0.001818,61106.0,61105.0,0.52978677]
[1728542781509,0.000818,61106.0,61105.0,0.52978677]
[1728542781739,0.001818,61106.0,61105.0,0.53678677]
[1728542781959,0.002818,61106.0,61105.0,0.52355459]
[1728542782383,0.001818,61106.0,61105.0,0.51655459]
[1728542783036,0.002818,61106.0,61105.0,0.52355459]
[1728542783248,0.001818,61106.0,61105.0,0.52155459]
[1728542783465,0.002818,61106.0,61105.0,0.52355459]
[1728542783681,0.001818,61106.0,61105.0,0.52155459]
[1728542784375,0.002818,61106.0,61105.0,0.51661211]
[1728542784602,0.001818,61106.0,61105.0,0.50961211]
[1728542784845,0.001818,61106.0,61105.0,0.51661211]
[1728542784846,0.002818,61106.0,61105.0,0.51661211]
[1728542785069,0.002818,61106.0,61105.0,0.51861211]
[1728542785301,0.002818,61106.0,61105.0,0.51161211]
[1728542785302,0.001818,61106.0,61105.0,0.51161211]
[1728542785551,0.001818,61106.0,61105.0,0.41861211]
[1728542785786,0.002818,61106.0,61105.0,0.41861211]
[1728542785998,0.001818,61106.0,61105.0,0.41161211]
[1728542786221,0.000818,61106.0,61105.0,0.29941211]
[1728542786516,0.001818,61106.0,61105.0,0.30541211]
[1728542786741,0.001818,61106.0,61105.0,0.28103592]
[1728542786967,0.001818,61106.0,61105.0,0.27903592]
[1728542787197,0.002818,61106.0,61105.0,0.28103592]
[1728542787455,0.001818,61106.0,61105.0,0.27903592]
[1728542787682,0.002818,61106.0,61105.0,0.03878392]
[1728542788128,0.0519708,61106.0,61105.0,0.03878392]
[1728542789103,0.0519708,61106.0,61105.0,0.02355174]
[1728542789104,0.21280844,61106.0,61105.0,0.02355174]
[1728542789317,0.16365564,61106.0,61105.0,0.02355174]
[1728542789540,0.16365564,61106.0,61105.0,0.008]
[1728542790034,0.16365564,61106.0,61105.0,0.02344113]
[1728542791156,0.23717499,61106.0,61105.0,0.02344113]
[1728542791372,0.34459757,61106.0,61105.0,0.008]
[1728542791596,0.44262337,61106.0,61105.0,0.02344113]
[1728542791819,0.44262337,61106.0,61105.0,0.008]
[1728542792058,0.44162337,61106.0,61105.0,0.002]
[1728542792316,0.44262337,61106.0,61105.0,0.008]
[1728542792762,0.18618069,61106.0,61105.0,0.006]
[1728542792999,0.18718069,61106.0,61105.0,0.02344113]
[1728542793250,0.19439562,61106.0,61105.0,0.006]
[1728542793483,0.19439562,61106.0,61105.0,0.008]
[1728542793745,0.19339562,61106.0,61105.0,0.01749829]
[1728542793970,0.19339562,61106.0,61105.0,0.01949829]
[1728542796815,0.19339562,61106.0,61105.0,0.004]
[1728542797055,0.30081745,61106.0,61105.0,0.01949829]
[1728542797317,0.39884325,61106.0,61105.0,0.004]
[1728542797573,0.30081745,61106.0,61105.0,0.004]
[1728542798033,0.39884325,61106.0,61105.0,0.01949829]
[1728542798263,0.39884325,61106.0,61105.0,0.004]
[1728542798500,0.39884325,61106.0,61105.0,0.01949829]
[1728542798722,0.39884325,61106.0,61105.0,0.004]
[1728542799205,0.39966125,61106.0,61105.0,0.01952005]
[1728542799453,0.53205579,61106.0,61105.0,0.004]
[1728542799664,0.59767999,61106.0,61105.0,0.01952005]
[1728542799967,0.46528545,61106.0,61105.0,0.004]
[1728542800218,0.58028545,61106.0,61105.0,0.004]
[1728542800704,0.63133701,61106.0,61105.0,0.002]
[1728542800959,0.163658,61103.0,61102.0,0.001636]
[1728542801215,0.63116738,61103.0,61102.0,0.001636]
[1728542804342,0.64516738,61103.0,61102.0,0.001636]
[1728542804832,0.65916738,61103.0,61102.0,0.002636]
[1728542805815,0.65908211,61103.0,61102.0,0.002636]
[1728542813530,0.98144229,61103.0,61102.0,0.002636]
[1728542813801,1.06389004,61103.0,61102.0,0.002636]
[1728542814302,1.06381511,61103.0,61102.0,0.002636]
[1728542814552,1.06381511,61103.0,61102.0,0.001636]
[1728542814553,0.90290409,61103.0,61102.0,0.001636]
[1728542814774,0.29656,61102.0,61101.0,0.05089586]
[1728542815008,0.83617598,61102.0,61101.0,0.05089586]
[1728542816930,0.85017598,61102.0,61101.0,0.05089586]
[1728542817385,0.70328123,61102.0,61101.0,0.05089586]
[1728542817612,0.71728123,61102.0,61101.0,0.05089586]
[1728542817844,0.87808784,61102.0,61101.0,0.05089586]
[1728542818091,0.87789886,61102.0,61101.0,0.05089586]
[1728542820696,0.42053225,61102.0,61101.0,0.05089586]
[1728542820929,0.31325859,61102.0,61101.0,0.21455886]
[1728542821158,0.18883764,61102.0,61101.0,0.22869001]
[1728542821387,0.2377669,61102.0,61101.0,0.22869001]
[1728542821616,0.2377669,61102.0,61101.0,0.06502701]
[1728542821841,0.2237669,61102.0,61101.0,0.22869001]
[1728542822070,0.17483764,61102.0,61101.0,0.22869001]
[1728542822311,0.16083764,61102.0,61101.0,0.22869001]
[1728542822590,0.2217669,61102.0,61101.0,0.22869001]
[1728542822811,0.2217669,61102.0,61101.0,0.23069001]
[1728542823270,0.2357669,61102.0,61101.0,0.23069001]
[1728542823493,0.07492926,61102.0,61101.0,0.22869001]
[1728542823777,0.07492926,61102.0,61101.0,0.30479001]
[1728542823778,0.012,61102.0,61101.0,0.30479001]
[1728542824011,0.023,61102.0,61101.0,0.30479001]
[1728542824248,0.023,61102.0,61101.0,0.30679001]
[1728542825405,0.023,61102.0,61101.0,0.30479001]
[1728542825656,0.023,61102.0,61101.0,0.14112701]
[1728542825883,0.07192926,61102.0,61101.0,0.14112701]
[1728542826138,0.023,61102.0,61101.0,0.14112701]
[1728542826857,0.023,61102.0,61101.0,0.30479001]
[1728542827324,0.09639836,61102.0,61101.0,0.30479001]
[1728542828540,0.09639836,61102.0,61101.0,0.14112701]
[1728542829224,0.023,61102.0,61101.0,0.14112701]
[1728542829451,0.30180005,61102.0,61101.0,0.14112701]
[1728542829932,0.30180005,61102.0,61101.0,0.30479001]
[1728542830192,0.30180005,61102.0,61101.0,0.14112701]
[1728542830411,0.20393475,61102.0,61101.0,0.14112701]
[1728542830890,0.61491233,61102.0,61101.0,0.14112701]
[1728542831120,0.66602487,61102.0,61101.0,0.06502701]
[1728542831377,0.57954493,61102.0,61101.0,0.05089586]
[1728542831616,0.60254493,61102.0,61101.0,0.05089586]
[1728542831850,0.71424493,61102.0,61101.0,0.05089586]
[1728542832121,0.87943133,61102.0,61101.0,0.05089586]
[1728542832362,0.87943133,61102.0,61092.0,0.0497327]
[1728542832363,0.28940886,61093.0,61092.0,0.0497327]
[1728542832603,0.63118125,61093.0,61092.0,0.0497327]
[1728542832866,0.163688,61092.0,61088.0,0.001636]
[1728542833105,0.22382144,61090.0,61088.0,0.001636]
[1728542833369,0.43986897,61089.0,61088.0,0.001636]
[1728542834319,0.43986897,61089.0,61088.0,0.01570172]
[1728542834320,0.46019865,61089.0,61088.0,0.01570172]
[1728542834561,0.62389365,61089.0,61088.0,0.01570172]
[1728542834797,0.62389365,61089.0,61088.0,0.001636]
[1728542835534,0.50560745,61089.0,61088.0,0.001636]
[1728542835798,0.50760745,61089.0,61088.0,0.001636]
[1728542836031,0.50860745,61089.0,61088.0,0.001636]
[1728542836276,0.50760745,61089.0,61088.0,0.001636]
[1728542836533,0.63021224,61089.0,61088.0,0.001636]
[1728542836797,0.63321224,61089.0,61088.0,0.001636]
[1728542837032,0.36512324,61089.0,61088.0,0.001636]
[1728542837282,0.47258266,61089.0,61088.0,0.001636]
[1728542837535,0.29983287,61089.0,61088.0,0.001636]
[1728542837789,0.29983287,61089.0,61088.0,0.01574018]
[1728542838299,0.37339014,61089.0,61088.0,0.01574018]
[1728542838531,0.34887183,61089.0,61088.0,0.01574018]
[1728542838980,0.29983287,61089.0,61088.0,0.01574018]
[1728542840199,0.37339328,61089.0,61088.0,0.01574018]
[1728542841871,0.34887572,61089.0,61088.0,0.01574018]
[1728542842125,0.29983287,61089.0,61088.0,0.01574018]
[1728542842374,0.57896888,61089.0,61088.0,0.01574018]
[1728542842619,0.48088833,61089.0,61088.0,0.01574018]
[1728542842893,0.34887982,61089.0,61088.0,0.01574018]
[1728542843180,0.3734033,61089.0,61088.0,0.01574018]
[1728542843663,0.29983287,61089.0,61088.0,0.01574018]
[1728542844391,0.57899108,61089.0,61088.0,0.01574018]
[1728542844861,0.57902074,61089.0,61088.0,0.01574018]
[1728542847473,0.37341599,61089.0,61088.0,0.01574018]
[1728542847724,0.57902973,61089.0,61088.0,0.01574018]
[1728542847977,0.34888919,61089.0,61088.0,0.01574018]
[1728542848215,0.29983287,61089.0,61088.0,0.01574018]
[1728542848464,0.37341783,61089.0,61088.0,0.01574018]
[1728542848718,0.55926969,61089.0,61088.0,0.01574018]
[1728542848972,0.68190541,61089.0,61088.0,0.01574018]
[1728542849202,0.65738833,61089.0,61088.0,0.01112892]
[1728542849437,0.68190541,61089.0,61088.0,0.02518679]
[1728542849689,0.68190541,61089.0,61088.0,0.001636]
[1728542849690,0.60355627,61089.0,61088.0,0.001636]
[1728542849922,0.60355627,61089.0,61088.0,0.02518679]
[1728542850158,0.60355627,61089.0,61088.0,0.001636]
[1728542850914,0.48092055,61089.0,61088.0,0.001636]
[1728542851877,0.29983287,61089.0,61088.0,0.001636]
[1728542852123,0.39565752,61089.0,61088.0,0.001636]
[1728542852358,0.69937148,61089.0,61088.0,0.02518679]
[1728542852839,0.57673808,61089.0,61088.0,0.001636]
[1728542854282,0.69937107,61089.0,61088.0,0.001636]
[1728542855496,0.60354642,61089.0,61088.0,0.001636]
[1728542856932,0.60354642,61089.0,61088.0,0.02520095]
[1728542857175,0.60354642,61089.0,61088.0,0.001636]
[1728542857667,0.60354642,61089.0,61088.0,0.02520095]
[1728542857897,0.60354642,61089.0,61088.0,0.001636]
[1728542858132,0.60354642,61089.0,61088.0,0.02520095]
[1728542858406,0.60354642,61089.0,61088.0,0.001636]
[1728542858639,0.71981987,61089.0,61088.0,0.02522618]
[1728542858870,0.71981987,61089.0,61088.0,0.001636]
[1728542859108,0.71981987,61089.0,61088.0,0.02522618]
[1728542859362,0.71981987,61089.0,61088.0,0.001636]
[1728542859598,0.60354642,61089.0,61088.0,0.001636]
[1728542861990,0.60354642,61089.0,61088.0,0.001636]
[1728542863967,0.48091343,61089.0,61088.0,0.001636]
[1728542864199,0.53205682,61089.0,61088.0,0.001636]
[1728542864938,0.69575182,61089.0,61088.0,0.001636]
[1728542865181,0.85655843,61089.0,61088.0,0.001636]
[1728542865898,0.85453542,61089.0,61088.0,0.001636]
[1728542866199,0.85353542,61089.0,61088.0,0.001636]
[1728542866450,0.85653542,61089.0,61088.0,0.001636]
[1728542866706,0.85153542,61089.0,61088.0,0.001636]
[1728542866952,0.85853542,61089.0,61088.0,0.001636]
[1728542867496,0.85453542,61089.0,61088.0,0.001636]
[1728542867691,0.86553542,61089.0,61088.0,0.001636]
[1728542868181,0.86553728,61089.0,61088.0,0.001636]
[1728542868665,0.86253728,61089.0,61088.0,0.001636]
[1728542869142,0.87353728,61089.0,61088.0,0.001636]
[1728542870614,1.02068397,61089.0,61088.0,0.001636]
[1728542870843,0.87353728,61089.0,61088.0,0.001636]
[1728542871348,1.02068397,61089.0,61088.0,0.001636]
[1728542872093,1.03268397,61089.0,61088.0,0.001636]
[1728542872351,1.00243728,61089.0,61088.0,0.001636]
[1728542872604,1.23406606,61089.0,61088.0,0.001636]
[1728542872875,1.06843728,61089.0,61088.0,0.001636]
[1728542873122,0.163717,61081.0,61080.0,0.0499522]
[1728542873382,0.64865462,61081.0,61080.0,0.0499522]
[1728542873645,0.82971403,61081.0,61080.0,0.0197152]
[1728542873940,0.82971403,61081.0,61077.0,0.009752]
[1728542874163,0.12572486,61078.0,61077.0,0.009752]
[1728542874379,0.47877362,61078.0,61077.0,0.009752]
[1728542874628,0.65983303,61078.0,61077.0,0.009752]
[1728542875632,0.60868964,61078.0,61077.0,0.009752]
[1728542876413,0.46762191,61078.0,61077.0,0.009752]
[1728542876663,0.47662191,61078.0,61077.0,0.009752]
[1728542877621,0.47677569,61078.0,61077.0,0.009752]
[1728542878149,0.52790532,61078.0,61077.0,0.009752]
[1728542878393,0.69163032,61078.0,61077.0,0.009752]
[1728542878642,0.85243693,61078.0,61077.0,0.009752]
[1728542878884,0.69163032,61078.0,61077.0,0.009752]
[1728542880425,0.52790532,61078.0,61077.0,0.009752]
[1728542880699,0.52790532,61078.0,61077.0,0.01057]
[1728542881519,0.69163032,61078.0,61077.0,0.01057]
[1728542881745,0.6375823,61078.0,61077.0,0.03047724]
[1728542881974,0.68869835,61078.0,61077.0,0.01057]
[1728542882230,0.83591484,61078.0,61077.0,0.01057]
[1728542882814,0.54938337,61078.0,61077.0,0.174297]
[1728542883055,0.54938337,61078.0,61077.0,0.363697]
[1728542883056,0.35105083,61078.0,61077.0,0.363697]
[1728542883310,0.35105083,61078.0,61077.0,0.38363082]
[1728542885561,0.35093105,61078.0,61077.0,0.38363082]
[1728542886084,0.51152443,61078.0,61077.0,0.21990382]
[1728542886326,0.51152443,61078.0,61077.0,0.38363082]
[1728542887338,0.47665591,61078.0,61077.0,0.38363082]
[1728542890006,0.47666415,61078.0,61077.0,0.38363082]
[1728542890740,0.599315,61078.0,61077.0,0.38363082]
[1728542890973,0.47666415,61078.0,61077.0,0.38363082]
[1728542891217,0.599315,61078.0,61077.0,0.11340382]
[1728542891458,0.56768605,61078.0,61077.0,0.11340382]
[1728542891980,0.56768605,61078.0,61077.0,0.09347]
[1728542892229,0.56768605,61078.0,61077.0,0.01057]
[1728542892230,0.78253659,61078.0,61077.0,0.01057]
[1728542892724,0.73141105,61078.0,61077.0,0.01057]
[1728542893011,0.92471807,61078.0,61077.0,0.01057]
[1728542893205,0.93871807,61078.0,61077.0,0.01057]
[1728542893432,0.84769617,61078.0,61077.0,0.01057]
[1728542893898,0.84369617,61078.0,61077.0,0.01057]
[1728542894127,0.85769617,61078.0,61077.0,0.01057]
[1728542894594,0.52941349,61078.0,61077.0,0.01057]
[1728542894819,0.85775752,61078.0,61077.0,0.01057]
[1728542895056,0.89757063,61078.0,61077.0,0.01057]
[1728542896301,0.71054899,61078.0,61077.0,0.01057]
[1728542900370,0.96412576,61078.0,61077.0,0.01057]
[1728542901338,1.07602576,61078.0,61077.0,0.01057]
[1728542901812,0.84544899,61078.0,61077.0,0.01057]
[1728542902036,0.83144899,61078.0,61077.0,0.01057]
[1728542902280,1.0062556,61078.0,61077.0,0.01057]
[1728542902774,0.9922556,61078.0,61077.0,0.01057]
[1728542903008,1.24583237,61078.0,61077.0,0.01057]
[1728542903252,1.25983237,61078.0,61077.0,0.01057]
[1728542903964,1.25974817,61078.0,61077.0,0.01057]
[1728542906207,1.24574817,61078.0,61077.0,0.01057]
[1728542906449,1.25974817,61078.0,61077.0,0.01057]
[1728542906675,1.12002331,61078.0,61077.0,0.01057]
[1728542906901,0.71950852,61078.0,61077.0,0.01057]
[1728542907636,0.73350852,61078.0,61077.0,0.01057]
[1728542908614,0.55241349,61078.0,61077.0,0.01057]
[1728542908861,0.73355409,61078.0,61077.0,0.01057]
[1728542909096,0.8943607,61078.0,61077.0,0.01057]
[1728542912590,1.05997496,61078.0,61077.0,0.01057]
[1728542912730,1.08562934,61078.0,61077.0,0.01057]
[1728542913421,1.08572455,61078.0,61077.0,0.01057]
[1728542913665,0.92491794,61078.0,61077.0,0.01057]
[1728542916540,0.75925821,61078.0,61077.0,0.01057]
[1728542922878,0.75935269,61078.0,61077.0,0.01057]
[1728542924224,0.61062783,61078.0,61077.0,0.10987]
[1728542924473,0.57262769,61078.0,61077.0,0.10987]
[1728542924699,0.57262769,61078.0,61077.0,0.12661297]
[1728542925865,0.73635269,61078.0,61077.0,0.12661297]
[1728542926101,0.75797664,61078.0,61077.0,0.12661297]
[1728542926328,0.92371408,61078.0,61077.0,0.12661297]
[1728542926558,0.7363432,61078.0,61077.0,0.10987]
[1728542932469,0.73640426,61078.0,61077.0,0.10987]
[1728542937275,0.73653581,61078.0,61077.0,0.10987]
[1728542937998,0.73653581,61078.0,61077.0,0.12661297]
[1728542938227,0.61081095,61078.0,61077.0,0.12661297]
[1728542938469,0.73653581,61078.0,61077.0,0.12661297]
[1728542940972,0.73657698,61078.0,61077.0,0.12661297]
[1728542943350,0.73657698,61078.0,61077.0,0.10987]
[1728542951851,0.73657698,61078.0,61077.0,0.12661286]
[1728542953015,0.73657698,61078.0,61077.0,0.10987]
[1728542954763,0.26561801,61078.0,61077.0,0.18867]
[1728542955026,0.42142619,61078.0,61077.0,0.352397]
[1728542955266,0.42142619,61078.0,61077.0,0.37113986]
[1728542956020,0.3703002,61078.0,61077.0,0.37113986]
[1728542957200,0.3703002,61078.0,61077.0,0.36913986]
[1728542957871,0.3703002,61078.0,61077.0,0.37113986]
[1728542958101,0.3703002,61078.0,61077.0,0.36913986]
[1728542959362,0.37014442,61078.0,61077.0,0.36913986]
[1728542959596,0.49291827,61078.0,61077.0,0.36913986]
[1728542962446,0.37014442,61078.0,61077.0,0.36913986]
[1728542963604,0.37014442,61078.0,61077.0,0.37113986]
[1728542964043,0.37014442,61078.0,61077.0,0.36913986]
[1728542966139,0.37014442,61078.0,61077.0,0.37113986]
[1728542966585,0.46831174,61078.0,61077.0,0.37113986]
[1728542967468,0.49208053,61078.0,61077.0,0.37113986]
[1728542967898,0.46831174,61078.0,61077.0,0.36913986]
[1728542968338,0.46831174,61078.0,61077.0,0.37113986]
[1728542970749,0.46831174,61078.0,61077.0,0.37341986]
[1728542978393,0.46817647,61078.0,61077.0,0.37341986]
[1728542978755,0.37001485,61078.0,61077.0,0.37341986]
[1728542980144,0.46818744,61078.0,61077.0,0.37341986]
[1728542980582,0.37002201,61078.0,61077.0,0.37341986]
[1728542982174,0.49272404,61078.0,61077.0,0.37341986]
[1728542983313,0.49278256,61078.0,61077.0,0.37341986]
[1728542986264,0.49282824,61078.0,61077.0,0.37341986]
[1728542988072,0.49284514,61078.0,61077.0,0.37341986]
[1728542989063,0.37009132,61078.0,61077.0,0.37141986]
[1728542989608,0.42131675,61078.0,61077.0,0.37141986]
[1728542990290,0.42131675,61078.0,61077.0,0.37341986]
[1728542990509,0.50712257,61078.0,61077.0,0.37141986]
[1728542990943,0.42131675,61078.0,61077.0,0.37141986]
[1728542991837,0.42131675,61078.0,61077.0,0.37341986]
[1728542992671,0.42137822,61078.0,61077.0,0.37341986]
[1728542998368,0.56873275,61078.0,61077.0,0.37341986]
[1728542998808,0.56873275,61078.0,61077.0,0.37328118]
[1728543000544,0.42137822,61078.0,61077.0,0.37328118]
[1728543000921,0.63555916,61078.0,61077.0,0.02945418]
[1728543001145,0.58510322,61078.0,61077.0,0.02945418]
[1728543001365,0.42137822,61078.0,61077.0,0.02945418]
[1728543001581,0.58510322,61078.0,61077.0,0.02945418]
[1728543002892,0.58510322,61078.0,61077.0,0.01271132]
[1728543003348,0.42137822,61078.0,61077.0,0.01271132]
[1728543004057,0.42137822,61078.0,61077.0,0.02659601]
[1728543005668,0.58510322,61078.0,61077.0,0.02659601]
[1728543006125,0.42137822,61078.0,61077.0,0.01271132]
[1728543006809,0.42137822,61078.0,61077.0,0.02659601]
[1728543007066,0.42137822,61078.0,61077.0,0.01271132]
[1728543007281,0.42137822,61078.0,61077.0,0.02659601]
[1728543008564,0.42301422,61078.0,61077.0,0.02659601]
[1728543010381,0.42309445,61078.0,61077.0,0.02659601]
[1728543012812,0.42309445,61078.0,61077.0,0.19032301]
[1728543015297,0.42309445,61078.0,61077.0,0.28722301]
[1728543020372,0.42309445,61078.0,61077.0,0.28922301]
[1728543032206,0.42309445,61078.0,61077.0,0.29621628]
[1728543032698,0.42309445,61078.0,61077.0,0.13048928]
[1728543033178,0.42309445,61078.0,61077.0,0.29421628]
[1728543034427,0.42315061,61078.0,61077.0,0.29421628]
[1728543037284,0.42315061,61078.0,61077.0,0.13048928]
[1728543038271,0.73287133,61078.0,61077.0,0.13048928]
[1728543038515,0.56914633,61078.0,61077.0,0.03358928]
[1728543039251,0.42315061,61078.0,61077.0,0.03358928]
[1728543040507,0.58687561,61078.0,61077.0,0.03358928]
[1728543040752,0.42315061,61078.0,61077.0,0.03358928]
[1728543040991,0.42315061,61078.0,61077.0,0.01271132]
[1728543041237,0.42315061,61078.0,61077.0,0.03358929]
[1728543041478,0.58904916,61078.0,61077.0,0.03358929]
[1728543042719,0.24169907,61078.0,61077.0,0.03358929]
[1728543043205,0.36742393,61078.0,61077.0,0.03358929]
[1728543044172,0.3161985,61078.0,61077.0,0.03358929]
[1728543044880,0.36744161,61078.0,61077.0,0.03358929]
[1728543045122,0.71499714,61078.0,61077.0,0.03358929]
[1728543045593,0.54900047,61078.0,61077.0,0.19731629]
[1728543046082,0.54900047,61078.0,61077.0,0.03358929]
[1728543049474,0.54903353,61078.0,61077.0,0.03358929]
[1728543051069,0.54903353,61078.0,61077.0,0.19731629]
[1728543051343,0.42330867,61078.0,61077.0,0.37921629]
[1728543051600,0.42330867,61078.0,61077.0,0.38121629]
[1728543052736,0.42330867,61078.0,61077.0,0.37921629]
[1728543053467,0.54903353,61078.0,61077.0,0.37921629]
[1728543057680,0.54903353,61078.0,61077.0,0.1819]
[1728543057805,0.49779042,61078.0,61077.0,0.36300317]
[1728543063302,0.37206556,61078.0,61077.0,0.36300317]
[1728543063514,0.49779042,61078.0,61077.0,0.36500317]
[1728543063714,0.49779042,61078.0,61077.0,0.36300317]
[1728543067678,0.54899936,61078.0,61077.0,0.36300317]
[1728543067892,0.54899936,61078.0,61077.0,0.36582117]
[1728543068103,0.54899936,61078.0,61077.0,0.36382117]
[1728543071382,0.54899936,61078.0,61077.0,0.36582117]
[1728543071798,0.5488827,61078.0,61077.0,0.36582117]
[1728543074393,0.42315784,61078.0,61077.0,0.36582117]
[1728543074649,0.3719489,61078.0,61077.0,0.36582117]
[1728543074856,0.33400158,61078.0,61077.0,0.37076365]
[1728543075071,0.33400158,61078.0,61077.0,0.47076365]
[1728543075072,0.30942117,61078.0,61077.0,0.47076365]
[1728543075321,0.029636,61078.0,61077.0,0.47076365]
[1728543084862,0.015636,61078.0,61077.0,0.47076365]
[1728543085395,0.002636,61078.0,61077.0,0.47076365]
[1728543093066,0.002636,61078.0,61077.0,0.46582117]
[1728543093327,0.17739519,61078.0,61077.0,0.18392117]
[1728543093537,0.002636,61078.0,61077.0,0.36766365]
[1728543094241,0.002636,61078.0,61077.0,0.46766365]
[1728543094242,0.001636,61078.0,61077.0,0.46766365]
[1728543095157,0.002636,61078.0,61077.0,0.46766365]
[1728543095386,0.001636,61078.0,61077.0,0.46766365]
[1728543096822,0.002636,61078.0,61077.0,0.46766365]
[1728543121157,0.05175785,61078.0,61077.0,0.46766365]
[1728543121616,0.002636,61078.0,61077.0,0.46766365]
[1728543122070,0.05178533,61078.0,61077.0,0.46766365]
[1728543122310,0.002636,61078.0,61077.0,0.46766365]
[1728543124647,0.05178607,61078.0,61077.0,0.46766365]
[1728543125089,0.002636,61078.0,61077.0,0.46766365]
[1728543126252,0.05178607,61078.0,61077.0,0.46766365]
[1728543126752,0.05178593,61078.0,61077.0,0.46766365]
[1728543128352,0.05178606,61078.0,61077.0,0.46766365]
[1728543129493,0.04961349,61078.0,61077.0,0.46766365]
[1728543131664,0.0496157,61078.0,61077.0,0.46766365]
[1728543134434,0.04961989,61078.0,61077.0,0.46766365]
[1728543135136,0.00046343,61078.0,61077.0,0.59338851]
[1728543136485,0.00046343,61078.0,61077.0,0.76122615]
[1728543136720,0.001636,61088.0,61087.0,0.00694248]